[Event "Australian-ch 2018"]
[Site "Sydney"]
[Date "2018.01.06"]
[Round "6"]
[White "Clarke, Brandon G I"]
[Black "Xie, George Wendi"]
[Result "1-0"]
[ECO "C11"]
[WhiteElo "2360"]
[BlackElo "2369"]
[Annotator "ChessBase"]
[PlyCount "73"]
[EventDate "2018.01.02"]
[EventType "tourn"]
[EventCountry "AUS"]
[SourceTitle "playchess.com"]
[Source "ChessBase"]
[SourceQuality "1"]
[TimeControl "40/5400+30:1800+30"]

1. e4 {[%emt 0:00:00]} e6 {[%emt 0:00:03]} 2. d4 {[%emt 0:00:31]} d5 {[%emt 0:00:03]} 3. Nc3 {[%emt 0:00:13]} Nf6 {[%emt 0:00:03]} 4. e5 {[%emt 0:00:10]} Nfd7 {[%emt 0:00:04]} 5. f4 {[%emt 0:00:05]} c5 {[%emt 0:00:02]} 6. Nf3 {[%emt 0:00:06]} Nc6 {[%emt 0:00:03]} 7. Be3 {[%emt 0:00:09]} a6 {[%emt 0:00:03]} 8. Qd2 {[%emt 0:00:26]} b5 {[%emt 0:00:04]} 9. dxc5 {[%emt 0:00:14]} Nxc5 {[%emt 0:01:28]} 10. Qf2 {[%emt 0:01:29]} Qe7 {[%emt 0:03:53]} 11. a3 {[%emt 0:05:14]} Bb7 {[%emt 0:00:23]} 12. Be2 {[%emt 0:03:19]} f5 {[%emt 0:04:35]} 13. exf6 {[%emt 0:03:39]} gxf6 {[%emt 0:00:01]} 14. f5 {[%emt 0:01:21]} O-O-O {[%emt 0:05:30]} 15. O-O-O {[%emt 0:07:03]} Ne4 {[%emt 0:03:24]} 16. Nxe4 {[%emt 0:00:15]} dxe4 {[%emt 0:00:01]} 17. Nd2 {[%emt 0:03:46]} Ne5 {[%emt 0:17:08]} 18. Nb3 {[%emt 0:03:31]} Rd5 {[%emt 0:00:00]} 19. Nd4 {[%emt 0:06:33]} exf5 {[%emt 0:00:02]} 20. Nxf5 {[%emt 0:08:24]} Qd7 {[%emt 0:00:01]} 21. Rxd5 {[%emt 0:00:25]} Qxd5 {[%emt 0:00:02]} 22. Kb1 {[%emt 0:00:54]} Rg8 {[%emt 0:06:54]} 23. Rd1 {[%emt 0:00:56]} Qe6 {[%emt 0:00:03]} 24. Nd4 {[%emt 0:21:20]} Qe7 {[%emt 0:00:01]} 25. h3 {[%emt 0:09:52]} Kb8 {[%emt 0:01:31]} 26. Nf5 {[%emt 0:00:41]} Qe8 {[%emt 0:02:41]} 27. Bb6 {[%emt 0:05:22]} Be7 {[%emt 0:00:05]} 28. g4 {[%emt 0:01:34]} Qf7 {[%emt 0:00:38]} 29. Nxe7 {[%emt 0:00:43]} Qxe7 {[%emt 0:00:04]} 30. Bc5 {[%emt 0:00:08]} Qg7 31. Bd6+ {[%emt 0:02:46]} Ka8 {[%emt 0:01:02]} 32. Qb6 {[%emt 0:01:38]} Nd7 {[%emt 0:00:02]} 33. Qa5 {[%emt 0:00:34]} Rc8 {[%emt 0:02:11]} 34. Bxb5 {[%emt 0:00:25]} Qg5 35. Bf4 {[%emt 0:04:44]} Qxf4 {[%emt 0:10:20]} 36. Rxd7 Rc5 {[%emt 0:08:53]} 37. Qb6 {[%emt 0:01:23]} 1-0

[Event "Australian-ch 2018"]
[Site "Sydney"]
[Date "2018.01.06"]
[Round "6"]
[White "Dale, Ari"]
[Black "Kargosha, Bahman"]
[Result "1-0"]
[ECO "E43"]
[WhiteElo "2356"]
[BlackElo "2210"]
[Annotator "ChessBase"]
[PlyCount "69"]
[EventDate "2018.01.02"]
[EventType "tourn"]
[EventCountry "AUS"]
[SourceTitle "playchess.com"]
[Source "ChessBase"]
[SourceQuality "1"]
[TimeControl "40/5400+30:1800+30"]

1. d4 {[%emt 0:00:00]} Nf6 {[%emt 0:00:08]} 2. c4 {[%emt 0:00:00]} e6 {[%emt 0:00:07]} 3. Nc3 {[%emt 0:00:00]} Bb4 {[%emt 0:00:11]} 4. e3 {[%emt 0:00:00]} b6 {[%emt 0:00:10]} 5. Bd3 {[%emt 0:00:09]} Bb7 {[%emt 0:00:44]} 6. Nf3 {[%emt 0:00:05]} Ne4 {[%emt 0:01:10]} 7. O-O {[%emt 0:00:25]} Bxc3 {[%emt 0:03:47]} 8. bxc3 {[%emt 0:00:09]} O-O {[%emt 0:02:12]} 9. Ne1 {[%emt 0:01:13]} f5 {[%emt 0:01:52]} 10. f3 {[%emt 0:01:36]} Nf6 {[%emt 0:01:04]} 11. Qe2 {[%emt 0:02:31]} Nc6 {[%emt 0:03:51]} 12. e4 {[%emt 0:02:15]} fxe4 {[%emt 0:00:45]} 13. fxe4 {[%emt 0:00:06]} e5 {[%emt 0:00:46]} 14. Nc2 {[%emt 0:08:11]} d6 {[%emt 0:06:15]} 15. c5 {[%emt 0:08:12]} dxc5 {[%emt 0:08:08]} 16. dxc5 {[%emt 0:00:55]} Nd7 {[%emt 0:09:28]} 17. Ba3 {[%emt 0:19:18]} Nxc5 {[%emt 0:18:22]} 18. Bxc5 {[%emt 0:09:42]} bxc5 {[%emt 0:04:06]} 19. Bc4+ {[%emt 0:02:16]} Kh8 {[%emt 0:00:22]} 20. Bd5 {[%emt 0:01:23]} Na5 {[%emt 0:06:33]} 21. Ne3 {[%emt 0:11:40]} c6 {[%emt 0:02:34]} 22. Bf7 {[%emt 0:01:32]} g6 {[%emt 0:02:41]} 23. Rf3 {[%emt 0:03:20]} Qh4 {[%emt 0:07:52]} 24. Raf1 {[%emt 0:00:57]} Rad8 {[%emt 0:00:44]} 25. Bxg6 {[%emt 0:01:03]} Rxf3 {[%emt 0:00:20]} 26. Rxf3 {[%emt 0:00:05]} Bc8 {[%emt 0:01:08]} 27. Bf5 {[%emt 0:07:14]} Bxf5 {[%emt 0:01:15]} 28. Nxf5 {[%emt 0:00:07]} Qg5 {[%emt 0:01:00]} 29. h4 {[%emt 0:02:19]} Qd2 {[%emt 0:04:29]} 30. Qa6 {[%emt 0:00:04]} Rg8 {[%emt 0:02:11]} 31. Qf1 {[%emt 0:00:05]} Nc4 {[%emt 0:00:40]} 32. Ne7 {[%emt 0:01:19]} Ne3 {[%emt 0:01:15]} 33. Rf8 {[%emt 0:00:22]} Qxg2+ {[%emt 0:03:10]} 34. Qxg2 {[%emt 0:00:04]} Rxf8 {[%emt 0:00:03]} 35. Qe2 {[%emt 0:00:27]} 1-0

[Event "Australian-ch 2018"]
[Site "Sydney"]
[Date "2018.01.06"]
[Round "6"]
[White "Zhang, Jilin"]
[Black "Brown, Andrew"]
[Result "0-1"]
[ECO "C45"]
[WhiteElo "2267"]
[BlackElo "2293"]
[Annotator "ChessBase"]
[PlyCount "90"]
[EventDate "2018.01.02"]
[EventType "tourn"]
[EventCountry "AUS"]
[SourceTitle "playchess.com"]
[Source "ChessBase"]
[SourceQuality "1"]
[TimeControl "40/5400+30:1800+30"]

1. e4 {[%emt 0:00:00]} e5 {[%emt 0:00:15]} 2. Nf3 {[%emt 0:00:00]} Nc6 {[%emt 0:00:08]} 3. d4 {[%emt 0:00:32]} exd4 {[%emt 0:00:08]} 4. Nxd4 {[%emt 0:00:04]} Bc5 {[%emt 0:00:20]} 5. Be3 {[%emt 0:00:39]} Qf6 {[%emt 0:00:22]} 6. c3 {[%emt 0:00:08]} Nge7 {[%emt 0:00:18]} 7. g3 {[%emt 0:01:35]} h5 {[%emt 0:00:51]} 8. h3 {[%emt 0:10:44]} d5 {[%emt 0:08:37]} 9. Bg2 {[%emt 0:02:44]} Bxd4 {[%emt 0:01:00]} 10. cxd4 {[%emt 0:01:01]} dxe4 {[%emt 0:00:21]} 11. Nc3 {[%emt 0:06:19]} Bf5 {[%emt 0:05:37]} 12. Nxe4 {[%emt 0:06:59]} Bxe4 {[%emt 0:00:32]} 13. Bxe4 {[%emt 0:00:02]} O-O-O {[%emt 0:01:12]} 14. Qa4 {[%emt 0:05:22]} Nd5 {[%emt 0:09:59]} 15. O-O-O {[%emt 0:07:01]} Rhe8 {[%emt 0:12:05]} 16. Bc2 {[%emt 0:01:59]} Nxe3 {[%emt 0:11:03]} 17. fxe3 {[%emt 0:00:10]} Qg5 {[%emt 0:05:53]} 18. Kb1 {[%emt 0:04:48]} Rxe3 {[%emt 0:04:50]} 19. Rhf1 {[%emt 0:04:31]} Rxg3 {[%emt 0:18:43]} 20. Be4 {[%emt 0:17:39]} Kb8 {[%emt 0:13:59]} 21. Rf5 {[%emt 0:03:20]} Qg6 {[%emt 0:01:07]} 22. d5 {[%emt 0:20:45]} Qd6 {[%emt 0:00:30]} 23. Rxh5 {[%emt 0:03:17]} Ne5 {[%emt 0:02:22]} 24. Qd4 {[%emt 0:01:09]} f6 {[%emt 0:01:01]} 25. Qf2 {[%emt 0:00:15]} Nc4 {[%emt 0:01:07]} 26. Bc2 {[%emt 0:00:59]} Qb6 {[%emt 0:00:33]} 27. Qxb6 {[%emt 0:00:46]} axb6 {[%emt 0:00:11]} 28. h4 {[%emt 0:00:37]} Ne3 {[%emt 0:00:28]} 29. Re1 {[%emt 0:00:05]} Rxd5 {[%emt 0:00:45]} 30. Rh8+ {[%emt 0:00:45]} Ka7 {[%emt 0:00:05]} 31. Be4 {[%emt 0:00:15]} Rd4 {[%emt 0:00:49]} 32. Re8 {[%emt 0:00:15]} Nc4 {[%emt 0:00:39]} 33. Re7 {[%emt 0:00:25]} Nd2+ {[%emt 0:00:30]} 34. Kc2 {[%emt 0:00:21]} Nxe4 {[%emt 0:00:14]} 35. R1xe4 {[%emt 0:00:02]} Rxe4 {[%emt 0:00:32]} 36. Rxe4 {[%emt 0:00:01]} b5 {[%emt 0:00:17]} 37. Re7 {[%emt 0:00:43]} Kb6 {[%emt 0:00:11]} 38. h5 {[%emt 0:00:16]} Kc6 {[%emt 0:00:20]} 39. Rf7 {[%emt 0:00:11]} Rh3 {[%emt 0:00:59]} 40. Rxg7 {[%emt 0:00:07]} Rxh5 {[%emt 0:30:05]} 41. Rf7 {[%emt 0:30:02]} Rf5 {[%emt 0:00:51]} 42. Kc3 {[%emt 0:01:32]} Rf3+ {[%emt 0:00:31]} 43. Kc2 {[%emt 0:00:31]} b4 {[%emt 0:00:48]} 44. Rf8 {[%emt 0:00:00]} Kb5 {[%emt 0:00:00]} 45. Rf7 {[%emt 0:00:00]} Kb6 {[%emt 0:00:00]} 0-1

[Event "Australian-ch 2018"]
[Site "Sydney"]
[Date "2018.01.06"]
[Round "6"]
[White "Loh, Zachary"]
[Black "Guichard, Pauline"]
[Result "0-1"]
[ECO "A00"]
[WhiteElo "2193"]
[BlackElo "2269"]
[Annotator "ChessBase"]
[PlyCount "92"]
[EventDate "2018.01.02"]
[EventType "tourn"]
[EventCountry "AUS"]
[SourceTitle "playchess.com"]
[Source "ChessBase"]
[SourceQuality "1"]
[TimeControl "40/5400+30:1800+30"]

1. e4 e5 2. Nf3 Nc6 3. d4 exd4 4. Nxd4 g6 5. Be3 Bg7 6. Nc3 Nf6 7. Nxc6 bxc6 8. e5 Ng8 9. f4 Ne7 10. Bc4 d5 11. exd6 cxd6 12. Bd4 O-O 13. Bxg7 Kxg7 14. Qd4+ f6 15. O-O-O d5 16. Bb3 Nf5 17. Qd2 Nd6 18. h3 Bf5 19. g4 Ne4 20. Qe3 Nxc3 21. Qxc3 Be4 22. Rhe1 Qc7 23. Rf1 Rad8 24. g5 Kg8 25. Rde1 f5 26. h4 c5 27. a3 c4 28. Ba2 Rb8 29. h5 gxh5 30. b3 Qc5 31. b4 Qc7 32. Qd4 Rfd8 33. c3 a5 34. Rxe4 fxe4 35. f5 Qb6 36. Qe5 Qe3+ 37. Kb2 Qe2+ 38. Ka1 Qxf1+ 39. Bb1 Rb6 40. Qe7 Rf8 41. Qc5 Qxf5 42. Qxb6 Qxg5 43. b5 Qf6 44. Qe3 Kh8 45. Bc2 Rb8 46. Qh3 Qf3 0-1

[Event "Australian-ch 2018"]
[Site "Sydney"]
[Date "2018.01.06"]
[Round "6"]
[White "Reilly, Tim"]
[Black "O'Connell, Kevin J"]
[Result "1/2-1/2"]
[ECO "A00"]
[WhiteElo "2169"]
[BlackElo "2328"]
[Annotator "ChessBase"]
[PlyCount "54"]
[EventDate "2018.01.02"]
[EventType "tourn"]
[EventCountry "AUS"]
[SourceTitle "playchess.com"]
[Source "ChessBase"]
[SourceQuality "1"]
[TimeControl "40/5400+30:1800+30"]

1. d4 Nf6 2. c4 g6 3. Nc3 Bg7 4. e4 O-O 5. Be3 d6 6. f3 Nc6 7. Nge2 a6 8. Qd2 Rb8 9. h4 h5 10. O-O-O b5 11. Bh6 bxc4 12. g4 Kh7 13. Bxg7 Kxg7 14. Ng3 Rh8 15. Bxc4 e5 16. g5 Nd7 17. dxe5 Ndxe5 18. Be2 Rb4 19. Nd5 Ra4 20. Kb1 Be6 21. f4 Bxd5 22. exd5 Nd4 23. Qc3 Nxe2 24. Nxe2 Rc4 25. Qb3 Re4 26. Qc3 Rc4 27. Qb3 Re4 1/2-1/2

[Event "Australian-ch 2018"]
[Site "Sydney"]
[Date "2018.01.06"]
[Round "6"]
[White "McNamara, Gary"]
[Black "Willathgamuwa, Rowan"]
[Result "1/2-1/2"]
[ECO "A00"]
[WhiteElo "2134"]
[BlackElo "1980"]
[Annotator "ChessBase"]
[PlyCount "108"]
[EventDate "2018.01.02"]
[EventType "tourn"]
[EventCountry "AUS"]
[SourceTitle "playchess.com"]
[Source "ChessBase"]
[SourceQuality "1"]
[TimeControl "40/5400+30:1800+30"]

1. d4 d5 2. c4 c6 3. Nc3 Nf6 4. cxd5 cxd5 5. Bf4 e6 6. e3 Nc6 7. Bd3 Bd6 8. Bxd6 Qxd6 9. f4 O-O 10. Nf3 Nb4 11. Bb1 b6 12. a3 Nc6 13. b4 Bb7 14. O-O Rac8 15. Qd2 Ne7 16. Ne5 Ne4 17. Nxe4 dxe4 18. Ba2 Bd5 19. Rfc1 f6 20. Nc4 Qd7 21. Kf2 Rc7 22. Rc2 Rfc8 23. Rac1 Qa4 24. Rc3 Qc6 25. b5 Qd7 26. a4 Kf7 27. R1c2 Bxc4 28. Bxc4 Nd5 29. f5 Ke7 30. fxe6 Qxe6 31. Bxd5 Rxc3 32. Rxc3 Qxd5 33. Rxc8 Qf5+ 34. Kg3 Qxc8 35. Qb4+ Ke6 36. d5+ Kxd5 37. Qd4+ Ke6 38. Qxe4+ Kf7 39. Qxh7 Qc7+ 40. Kf3 Qc4 41. Qe4 Qf1+ 42. Kg4 Qd1+ 43. Kh3 Qe1 44. Qb7+ Kg6 45. Qe4+ Kf7 46. Qc4+ Kg6 47. Qg4+ Kf7 48. Qe4 g5 49. Qh7+ Ke6 50. Qe4+ Kf7 51. Qh7+ Ke6 52. Qe4+ Kf7 53. Kg4 Qd1+ 54. Kh3 Qe1 1/2-1/2

[Event "Australian-ch 2018"]
[Site "Sydney"]
[Date "2018.01.06"]
[Round "6"]
[White "Wright, Neil S"]
[Black "Hardegen, Andrew"]
[Result "0-1"]
[ECO "A00"]
[WhiteElo "2126"]
[BlackElo "1999"]
[Annotator "ChessBase"]
[PlyCount "86"]
[EventDate "2018.01.02"]
[EventType "tourn"]
[EventCountry "AUS"]
[SourceTitle "playchess.com"]
[Source "ChessBase"]
[SourceQuality "1"]
[TimeControl "40/5400+30:1800+30"]

1. e4 e6 2. d4 d5 3. Nd2 c5 4. exd5 exd5 5. Ngf3 Nf6 6. Bb5+ Bd7 7. Bxd7+ Nbxd7 8. O-O Be7 9. Re1 O-O 10. dxc5 Nxc5 11. Nb3 Nce4 12. Be3 a6 13. c3 Qd7 14. Nc1 Rfe8 15. Nd3 Bd6 16. Bf4 Bxf4 17. Nxf4 Qd6 18. Nd3 Rac8 19. Qb3 Ng4 20. h3 Nd2 21. hxg4 Nxb3 22. axb3 Re4 23. Nd4 Rce8 24. Rad1 Rxe1+ 25. Nxe1 Qf4 26. Ndf3 g6 27. g5 Re2 28. Kf1 Qe4 29. Nd3 Qe7 30. Nf4 Rxb2 31. Kg1 Kg7 32. Re1 Qd6 33. g3 Qb6 34. Nd4 h6 35. Nxd5 Qa5 36. Re5 Qa1+ 37. Kg2 Qa2 38. gxh6+ Kxh6 39. Ne3 Rxf2+ 40. Kg1 f5 41. g4 Rf4 42. Ne2 Re4 43. g5+ Kxg5 0-1

[Event "Australian-ch 2018"]
[Site "Sydney"]
[Date "2018.01.06"]
[Round "6"]
[White "Willathgamuwa, Kevin"]
[Black "Ferozkohi, Ihsan"]
[Result "0-1"]
[ECO "A00"]
[WhiteElo "2113"]
[BlackElo "2130"]
[Annotator "ChessBase"]
[PlyCount "156"]
[EventDate "2018.01.02"]
[EventType "tourn"]
[EventCountry "AUS"]
[SourceTitle "playchess.com"]
[Source "ChessBase"]
[SourceQuality "1"]
[TimeControl "40/5400+30:1800+30"]

1. e4 d5 2. exd5 Qxd5 3. Nc3 Qd6 4. d4 Nf6 5. Bd3 Nc6 6. Nge2 Bg4 7. f3 Bh5 8. Bf4 Qd7 9. Qd2 O-O-O 10. O-O-O e6 11. a3 Nxd4 12. Nxd4 Qxd4 13. Bxc7 Rd7 14. Nb5 Qc5 15. Bg3 a6 16. Qf4 Kd8 17. b4 Qc8 18. Na7 Qa8 19. Bf2 Bd6 20. Bb6+ Ke7 21. Qc4 Nd5 22. Bc5 b6 23. Bxd6+ Rxd6 24. Be4 Qxa7 25. Bxd5 Bg6 26. Be4 b5 27. Qc3 Rhd8 28. Rxd6 Rxd6 29. Bxg6 hxg6 30. Qxg7 Qe3+ 31. Kb2 Rd2 32. Qh8 e5 33. Qc8 Qd4+ 34. Kb1 Rxg2 35. Qxa6 Qc4 36. Rc1 Rxh2 37. Qb7+ Kf6 38. Qb6+ Kg7 39. Qc5 Qxc5 40. bxc5 Rh4 41. c4 bxc4 42. c6 Kf6 43. c7 Rh8 44. Rxc4 Rc8 45. Kc2 Ke6 46. Kd3 Kd6 47. Ra4 Rxc7 48. Ra6+ Rc6 49. Ra7 Ke6 50. a4 f6 51. Rb7 Kf5 52. Rb4 Rc1 53. Rg4 g5 54. Ke3 Ra1 55. Rb4 Ra3+ 56. Ke2 Ra2+ 57. Kd3 Ra1 58. Ke2 Kg6 59. Ke3 Rc1 60. Kd2 Rc6 61. a5 Kf5 62. Ke3 Rc3+ 63. Kf2 Ra3 64. Rb5 Ra4 65. Kg3 g4 66. fxg4+ Rxg4+ 67. Kf3 Ra4 68. Ke3 Ra3+ 69. Ke2 Kf4 70. Rb6 f5 71. a6 e4 72. Rh6 Ra2+ 73. Ke1 Ke5 74. Rb6 Kf4 75. Rh6 Kg4 76. Kf1 f4 77. Ke1 e3 78. Kf1 f3 0-1

[Event "Australian-ch 2018"]
[Site "Sydney"]
[Date "2018.01.06"]
[Round "6"]
[White "Winkelman, Albert"]
[Black "Yang, Ray"]
[Result "1/2-1/2"]
[ECO "A00"]
[WhiteElo "2017"]
[BlackElo "2003"]
[Annotator "NA"]
[PlyCount "158"]
[EventDate "2018.01.02"]
[EventType "tourn"]
[EventCountry "AUS"]
[SourceTitle "playchess.com"]
[Source "ChessBase"]
[SourceQuality "1"]
[TimeControl "40/5400+30:1800+30"]

1. e4 e6 2. d4 d5 3. Nd2 Nf6 4. e5 Nfd7 5. Bd3 c5 6. c3 Nc6 7. Ne2 cxd4 8. cxd4 f6 9. exf6 Nxf6 10. Nf3 Bd6 11. O-O Qc7 12. Bg5 O-O 13. Bh4 Nh5 14. Qc2 h6 15. Bh7+ Kh8 16. Bg6 Rxf3 17. Bxh5 Rf8 18. Bg3 Bd7 19. Rfe1 Rac8 20. Rac1 Bxg3 21. hxg3 Qd6 22. Qd2 Ne7 23. Nf4 Rxc1 24. Rxc1 g5 25. Nd3 Be8 26. Qe2 Kg7 27. Ne5 Bxh5 28. Qxh5 Rf6 29. f4 gxf4 30. gxf4 Qb6 31. Kh1 Rxf4 32. Rc3 Qxd4 33. Rg3+ Kh7 34. Nf3 Qf6 35. Ng5+ Kh8 36. Qe8+ Qf8 37. Qxf8+ Rxf8 38. Nxe6 Rf6 39. Nd4 Rf1+ 40. Kh2 Nf5 41. Nxf5 Rxf5 42. Rg6 Kh7 43. Rd6 b6 44. Kg3 Kg7 45. Rd7+ Kf6 46. Rxa7 Ke5 47. Re7+ Kd6 48. Re3 Kc5 49. Rf3 Re5 50. Kf2 d4 51. g4 Re6 52. a3 Kd5 53. a4 Ke4 54. b4 Rc6 55. Rh3 Kd5 56. Ke2 Kc4 57. b5 Re6+ 58. Kd2 Kb4 59. Rh5 Rg6 60. Kd3 Kxa4 61. Kxd4 Rxg4+ 62. Kc3 Rg6 63. Kc4 Ka5 64. Kb3 Rg5 65. Rxh6 Kxb5 66. Rh4 Rg3+ 67. Kb2 Ka5 68. Re4 b5 69. Rh4 Rd3 70. Rg4 Kb6 71. Kc2 Rh3 72. Kb2 Kc5 73. Rg5+ Kb4 74. Rg4+ Ka5 75. Rf4 Rd3 76. Kc2 Ra3 77. Kb2 Rg3 78. Rh4 b4 79. Rh8 Kb5 1/2-1/2

[Event "Australian-ch 2018"]
[Site "Sydney"]
[Date "2018.01.06"]
[Round "6"]
[White "Leaver, Kyle"]
[Black "Kethro, Michael"]
[Result "1/2-1/2"]
[ECO "A00"]
[WhiteElo "1973"]
[BlackElo "2195"]
[Annotator "ChessBase"]
[PlyCount "124"]
[EventDate "2018.01.02"]
[EventType "tourn"]
[EventCountry "AUS"]
[SourceTitle "playchess.com"]
[Source "ChessBase"]
[SourceQuality "1"]
[TimeControl "40/5400+30:1800+30"]

1. d4 d5 2. c4 c6 3. Nf3 Nf6 4. Nc3 dxc4 5. a4 e6 6. e3 c5 7. Bxc4 Nc6 8. O-O cxd4 9. exd4 Be7 10. Re1 O-O 11. Bb3 Nb4 12. Ne5 b6 13. Bg5 Bb7 14. Qe2 Nfd5 15. Bd2 Bg5 16. Bxg5 Qxg5 17. Ne4 Qd8 18. g3 Rc8 19. Qh5 h6 20. Nc4 Rxc4 21. Bxc4 Nc2 22. Qe5 Nxa1 23. Rxa1 Nb4 24. Nd6 Bf3 25. Nxf7 Rxf7 26. Bxe6 Bd5 27. Bxf7+ Bxf7 28. Rd1 Qa8 29. Qf5 Qc6 30. a5 bxa5 31. Re1 Bd5 32. h4 a4 33. Kh2 Bf7 34. Re7 Qd5 35. Qxd5 Bxd5 36. Rxa7 Nd3 37. Rxa4 Nxb2 38. Ra5 Bf3 39. Rf5 Be4 40. Re5 Bf3 41. Rc5 Bg4 42. Rc2 Nd3 43. d5 Ne5 44. Rc3 Kf7 45. Kg2 h5 46. f3 Bf5 47. Kf2 Ke7 48. Ke3 g6 49. Kd4 Nd7 50. Rc6 Kf7 51. Rc3 Kf6 52. Re3 Bh3 53. d6 Be6 54. Re4 Kf7 55. Re1 Kf6 56. Ra1 Ne5 57. Ra3 Nd7 58. Ra8 Bh3 59. Re8 Be6 60. Re7 Ne5 61. Ke4 Nf7 62. Ra7 Nxd6+ 1/2-1/2

[Event "Australian-ch 2018"]
[Site "Sydney"]
[Date "2018.01.06"]
[Round "6"]
[White "Silver, Dmitri"]
[Black "Parle, Hughston"]
[Result "0-1"]
[ECO "A00"]
[WhiteElo "1905"]
[BlackElo "1961"]
[Annotator "NA"]
[PlyCount "70"]
[EventDate "2018.01.02"]
[EventType "tourn"]
[EventCountry "AUS"]
[SourceTitle "playchess.com"]
[Source "ChessBase"]
[SourceQuality "1"]
[TimeControl "40/5400+30:1800+30"]

1. e4 c5 2. Nf3 d6 3. d4 cxd4 4. Nxd4 Nf6 5. Nc3 a6 6. Bg5 e6 7. Qe2 Qc7 8. f4 b5 9. a3 Nbd7 10. O-O-O Be7 11. g4 h6 12. Bh4 g5 13. fxg5 hxg5 14. Bxg5 Rb8 15. Bg2 Ne5 16. h3 b4 17. axb4 Rxb4 18. Rhf1 Nd5 19. Nxd5 Bxg5+ 20. Nf4 Ng6 21. Kb1 Nxf4 22. Qd2 Rxd4 23. Qxd4 e5 24. Qf2 Be6 25. Rh1 Bh4 26. Qd2 Ke7 27. Bf1 Bg5 28. Qb4 Bxg4 29. Re1 Be6 30. Rg1 Rb8 31. Qa3 Bh4 32. Re3 Bf2 33. Rc3 Qb6 34. Rgg3 Bxg3 35. Rxg3 Qf2 0-1

[Event "Australian-ch 2018"]
[Site "Sydney"]
[Date "2018.01.08"]
[Round "7.3"]
[White "Brown, Andrew"]
[Black "Dale, Ari"]
[Result "0-1"]
[ECO "E97"]
[WhiteElo "2293"]
[BlackElo "2356"]
[PlyCount "136"]
[EventDate "2018.01.02"]
[EventType "tourn"]
[EventCountry "AUS"]
[TimeControl "40/5400+30:1800+30"]

1. Nf3 {[%emt 0:00:00]} Nf6 {[%emt 0:00:05]} 2. c4 {[%emt 0:00:10]} g6 {[%emt 0:02:10]} 3. Nc3 {[%emt 0:00:10]} Bg7 {[%emt 0:00:05]} 4. e4 {[%emt 0:02:37]} d6 {[%emt 0:00:07]} 5. d4 {[%emt 0:00:06]} O-O {[%emt 0:00:06]} 6. Be2 {[%emt 0:00:05]} e5 {[%emt 0:00:06]} 7. O-O {[%emt 0:00:31]} Nc6 {[%emt 0:00:10]} 8. d5 {[%emt 0:00:11]} Ne7 {[%emt 0:00:05]} 9. b4 {[%emt 0:00:19]} Nh5 {[%emt 0:00:49]} 10. Re1 {[%emt 0:00:13]} f5 {[%emt 0:00:40]} 11. Qb3 {[%emt 0:07:11]} h6 {[%emt 0:14:17]} 12. c5 {[%emt 0:02:42]} fxe4 {[%emt 0:04:55]} 13. Nd2 {[%emt 0:10:08]} e3 {[%emt 0:15:16]} 14. fxe3 {[%emt 0:00:25]} e4 {[%emt 0:00:03]} 15. Ndxe4 {[%emt 0:06:11]} Nf5 {[%emt 0:01:47]} 16. g3 {[%emt 0:09:50]} Be5 {[%emt 0:10:44]} 17. Qc2 {[%emt 0:02:09]} Nhxg3 {[%emt 0:15:41]} 18. hxg3 {[%emt 0:33:04]} Nxg3 {[%emt 0:00:04]} 19. Nxg3 {[%emt 0:00:08]} Bf5 {[%emt 0:00:04]} 20. Nxf5 {[%emt 0:18:44]} Rxf5 {[%emt 0:00:59]} 21. Bg4 {[%emt 0:04:45]} Rg5 {[%emt 0:01:20]} 22. Re2 {[%emt 0:00:01]} Rxg4+ {[%emt 0:03:47]} 23. Rg2 {[%emt 0:00:01]} Qh4 {[%emt 0:07:39]} 24. Rxg4 {[%emt 0:00:18]} Qxg4+ {[%emt 0:00:04]} 25. Qg2 {[%emt 0:00:06]} Qxg2+ {[%emt 0:00:05]} 26. Kxg2 {[%emt 0:00:04]} Bxc3 {[%emt 0:00:06]} 27. Rb1 {[%emt 0:00:03]} Rf8 {[%emt 0:02:07]} 28. Ba3 {[%emt 0:02:37]} Rf5 {[%emt 0:03:21]} 29. Rd1 {[%emt 0:00:37]} Kg7 {[%emt 0:02:07]} 30. b5 {[%emt 0:00:25]} Be5 {[%emt 0:06:29]} 31. b6 {[%emt 0:00:34]} axb6 {[%emt 0:00:11]} 32. cxb6 {[%emt 0:00:07]} cxb6 {[%emt 0:00:12]} 33. Rb1 {[%emt 0:00:10]} Rf7 {[%emt 0:00:35]} 34. Rxb6 {[%emt 0:00:10]} Rd7 {[%emt 0:00:02]} 35. Kf3 {[%emt 0:01:54]} g5 {[%emt 0:01:08]} 36. Ke4 {[%emt 0:00:35]} Kg6 {[%emt 0:00:11]} 37. Bb2 {[%emt 0:00:23]} Bxb2 {[%emt 0:01:24]} 38. Rxb2 {[%emt 0:00:01]} h5 {[%emt 0:01:38]} 39. Kd4 {[%emt 0:01:05]} h4 {[%emt 0:00:50]} 40. e4 {[%emt 0:00:18]} h3 {[%emt 0:30:25]} 41. e5 {[%emt 0:30:25]} dxe5+ {[%emt 0:00:14]} 42. Kxe5 {[%emt 0:00:08]} Re7+ {[%emt 0:00:16]} 43. Kd4 {[%emt 0:01:14]} Rh7 {[%emt 0:02:19]} 44. Rb1 {[%emt 0:00:10]} g4 {[%emt 0:00:43]} 45. Ke3 {[%emt 0:00:34]} Rf7 {[%emt 0:00:22]} 46. d6 {[%emt 0:00:00]} Kg5 {[%emt 0:00:00]} 47. Rh1 {[%emt 0:00:00]} Kh4 {[%emt 0:00:00]} 48. Rd1 {[%emt 0:00:00]} Rd7 {[%emt 0:00:00]} 49. Kf2 {[%emt 0:00:00]} g3+ {[%emt 0:00:00]} 50. Kg1 {[%emt 0:00:00]} b5 {[%emt 0:00:00]} 51. a3 {[%emt 0:00:00]} Kg4 {[%emt 0:00:00]} 52. Rd4+ {[%emt 0:00:46]} Kf5 {[%emt 0:00:00]} 53. Rd3 {[%emt 0:00:57]} h2+ {[%emt 0:02:09]} 54. Kh1 {[%emt 0:00:51]} Rg7 {[%emt 0:00:22]} 55. Rd1 {[%emt 0:01:16]} Ke6 {[%emt 0:00:33]} 56. Kg2 {[%emt 0:00:15]} Kd7 {[%emt 0:00:20]} 57. Kh1 {[%emt 0:01:30]} Rg6 {[%emt 0:01:06]} 58. Kg2 {[%emt 0:00:35]} Rxd6 {[%emt 0:00:52]} 59. Rb1 {[%emt 0:01:03]} Rh6 {[%emt 0:01:10]} 60. Rh1 {[%emt 0:00:17]} Rg6 {[%emt 0:00:05]} 61. Rc1 {[%emt 0:00:25]} Kd6 {[%emt 0:00:31]} 62. Rd1+ {[%emt 0:00:48]} Kc5 {[%emt 0:00:08]} 63. Rc1+ {[%emt 0:00:09]} Kb6 {[%emt 0:00:20]} 64. Rb1 {[%emt 0:00:53]} Ka5 {[%emt 0:00:04]} 65. Ra1 {[%emt 0:00:30]} Ka4 {[%emt 0:00:17]} 66. Rb1 {[%emt 0:00:32]} Rh6 {[%emt 0:00:44]} 67. Rh1 {[%emt 0:00:24]} Kxa3 {[%emt 0:00:13]} 68. Kxg3 {[%emt 0:00:06]} b4 {[%emt 0:00:17]} 0-1